fUSD/lending_fUSD_20250916
["ID","MTS","AMOUNT","RATE_DAILY","PERIOD"]
[385772091,1758030677126,-400.0,0.0003041,6]
[385772092,1758030677136,-406.15,0.0003041,6]
[385772093,1758030677145,-413.17,0.0003041,6]
[385772094,1758030677155,-400.0,0.0003041,6]
[385772095,1758030677164,-400.0,0.0003041,6]
[385772096,1758030677174,-797.13,0.0003041,6]
[385772097,1758030677185,-1049.04,0.0003041,6]
[385772098,1758030677195,-400.0,0.0003041,6]
[385772099,1758030677205,-400.0,0.0003041,6]
[385772100,1758030677214,-2213.32,0.0003041,6]
[385772101,1758030677223,-400.0,0.0003041,6]
[385772102,1758030677233,-400.0,0.0003041,6]
[385772103,1758030677243,-797.31,0.0003041,6]
[385772104,1758030677252,-1283.89,0.0003041,6]
[385772105,1758030677262,-461.61682185,0.0003041,6]
[385772106,1758030677271,-1060.24,0.0003041,6]
[385772107,1758030677281,-400.0,0.0003041,6]
[385772108,1758030677291,-885.79,0.0003041,6]
[385772109,1758030677301,-489.33615048,0.0003041,6]
[385772110,1758030677310,-400.0,0.0003041,6]
[385772111,1758030677320,-400.0,0.0003041,6]
[385772112,1758030677330,-400.0,0.0003041,6]
[385772113,1758030677339,-400.0,0.0003041,6]
[385772114,1758030677349,-2811.76,0.0003041,6]
[385772115,1758030677359,-479.77,0.0003041,6]
[385772116,1758030677369,-400.0,0.0003041,6]
[385772117,1758030677378,-400.0,0.0003041,6]
[385772118,1758030677388,-400.0,0.0003041,6]
[385772119,1758030677397,-400.0,0.0003041,6]
[385772120,1758030677407,-400.0,0.0003041,6]
[385772121,1758030677416,-400.0,0.0003041,6]
[385772122,1758030677426,-400.0,0.0003041,6]
[385772123,1758030677436,-400.0,0.0003041,6]
[385772124,1758030677446,-2326.96,0.0003041,6]
[385772125,1758030677456,-400.0,0.0003041,6]
[385772126,1758030677466,-400.0,0.0003041,6]
[385772127,1758030677475,-943.91,0.0003041,6]
[385772128,1758030677485,-1000.0,0.0003041,6]
[385772129,1758030677495,-802.57,0.0003041,6]
[385772130,1758030677504,-400.0,0.0003041,6]
[385772131,1758030677514,-400.0,0.0003041,6]
[385772132,1758030677524,-400.0,0.0003041,6]
[385772133,1758030677533,-250.92674618,0.0003041,6]
[385772134,1758030677543,-400.0,0.0003041,6]
[385772135,1758030677552,-400.0,0.0003041,6]
[385772136,1758030677562,-402.40854124,0.0003041,6]
[385772137,1758030677572,-402.75448658,0.0003041,6]
[385772138,1758030677582,-501.48739307,0.0003041,6]
[385772139,1758030677592,-438.8,0.0003041,6]
[385772140,1758030677608,-4333.17,0.0003041,6]
[385772141,1758030677617,-616.09,0.0003041,6]
[385772142,1758030677627,-695.41,0.0003041,6]
[385772143,1758030677637,-400.0,0.0003041,6]
[385772144,1758030677647,-400.0,0.0003041,6]
[385772145,1758030677656,-737.81,0.0003041,6]
[385772146,1758030677666,-400.0,0.0003041,6]
[385772147,1758030677676,-400.0,0.0003041,6]
[385772148,1758030677685,-400.0,0.0003041,6]
[385772149,1758030677695,-400.0,0.0003041,6]
[385772150,1758030677705,-721.46,0.0003041,6]
[385772151,1758030677714,-400.0,0.0003041,6]
[385772152,1758030677724,-400.0,0.0003041,6]
[385772153,1758030677734,-400.0,0.0003041,6]
[385772154,1758030677744,-400.0,0.0003041,6]
[385772155,1758030677754,-413.10830478,0.0003041,6]
[385772156,1758030677764,-400.0,0.0003041,6]
[385772157,1758030677774,-400.0,0.0003041,6]
[385772158,1758030677783,-400.0,0.0003041,6]
[385772159,1758030677794,-400.0,0.0003041,6]
[385772160,1758030677804,-415.67,0.0003041,6]
[385772161,1758030677813,-400.0,0.0003041,6]
[385772162,1758030677823,-400.0,0.0003041,6]
[385772163,1758030677833,-400.0,0.0003041,6]
[385772164,1758030677843,-400.0,0.0003041,6]
[385772165,1758030677858,-400.0,0.0003041,6]
[385772166,1758030677868,-3014.3,0.0003041,6]
[385772167,1758030677879,-400.0,0.0003041,6]
[385772168,1758030677888,-400.0,0.0003041,6]
[385772169,1758030677898,-5291.0,0.0003041,6]
[385772170,1758030677914,-400.0,0.0003041,6]
[385772171,1758030677923,-400.0,0.0003041,6]
[385772172,1758030677932,-400.0,0.0003041,6]
[385772173,1758030677943,-764.66,0.0003041,6]
[385772174,1758030677955,-1037.28,0.0003041,6]
[385772175,1758030677965,-517.39106797,0.0003041,6]
[385772176,1758030677975,-400.0,0.0003041,6]
[385772177,1758030677985,-1489.86,0.0003041,6]
[385772178,1758030677995,-400.0,0.0003041,6]
[385772179,1758030678005,-559.37,0.0003041,6]
[385772180,1758030678015,-742.69,0.0003041,6]
[385772181,1758030678025,-300.0,0.0003041,6]
[385772182,1758030678035,-400.0,0.0003041,6]
[385772183,1758030678047,-401.28746467,0.0003041,6]
[385772184,1758030678058,-400.0,0.0003041,6]
[385772185,1758030678069,-1210.76,0.0003041,6]
[385772186,1758030678080,-400.0,0.0003041,6]
[385772187,1758030678091,-400.0,0.0003041,6]
[385772188,1758030678108,-400.0,0.0003041,6]
[385772189,1758030678118,-400.0,0.0003041,6]
[385772190,1758030678128,-400.0,0.0003041,6]
[385772191,1758030678137,-400.0,0.0003041,6]
[385772192,1758030678148,-1041.41,0.0003041,6]
[385772193,1758030678157,-400.0,0.0003041,6]
[385772194,1758030678167,-400.0,0.0003041,6]
[385772195,1758030678177,-400.0,0.0003041,6]
[385772196,1758030678186,-400.0,0.0003041,6]
[385772197,1758030678196,-400.0,0.0003041,6]
[385772198,1758030678205,-400.0,0.0003041,6]
[385772199,1758030678215,-400.0375098,0.0003041,6]
[385772200,1758030678226,-616.13,0.0003041,6]
[385772201,1758030678236,-400.0,0.0003041,6]
[385772202,1758030678246,-400.0,0.0003041,6]
[385772203,1758030678256,-533.62,0.0003041,6]
[385772204,1758030678267,-526.06,0.0003041,6]
[385772205,1758030678277,-400.0,0.0003041,6]
[385772206,1758030678287,-400.0,0.0003041,6]
[385772207,1758030678297,-400.0,0.0003041,6]
[385772208,1758030678307,-403.65971311,0.0003041,6]
[385772209,1758030678318,-708.1,0.0003041,6]
[385772210,1758030678327,-400.0,0.0003041,6]
[385772211,1758030678337,-744.62,0.0003041,6]
[385772212,1758030678350,-402.76001353,0.0003041,6]
[385772213,1758030678360,-400.0,0.0003041,6]
[385772214,1758030678369,-400.0,0.0003041,6]
[385772215,1758030678379,-407.95776377,0.0003041,6]
[385772216,1758030678389,-400.0,0.0003041,6]
[385772217,1758030678398,-552.08,0.0003041,6]
[385772218,1758030678407,-400.62802612,0.0003041,6]
[385772219,1758030678416,-400.0,0.0003041,6]
[385772220,1758030678426,-405.93,0.0003041,6]
[385772221,1758030678435,-400.0,0.0003041,6]
[385772222,1758030678445,-654.15,0.0003041,6]
[385772223,1758030678454,-400.0,0.0003041,6]
[385772224,1758030678464,-544.51,0.0003041,6]
[385772225,1758030678473,-400.0,0.0003041,6]
[385772226,1758030678483,-400.0,0.0003041,6]
[385772227,1758030678493,-753.49,0.0003041,6]
[385772228,1758030678502,-400.0,0.0003041,6]
[385772229,1758030678511,-673.54,0.0003041,6]
[385772230,1758030678521,-636.0,0.0003041,6]
[385772231,1758030678530,-401.7257989,0.0003041,6]
[385772232,1758030678540,-400.0,0.0003041,6]
[385772233,1758030678550,-400.0,0.0003041,6]
[385772234,1758030678559,-400.0,0.0003041,6]
[385772235,1758030678568,-1275.62,0.0003041,6]
[385772236,1758030678577,-400.0,0.0003041,6]
[385772237,1758030678587,-1115.63,0.0003041,6]
[385772238,1758030678598,-400.0,0.0003041,6]
[385772239,1758030678607,-400.0,0.0003041,6]
[385772240,1758030678617,-400.0,0.0003041,6]
[385772241,1758030678626,-322.94545934,0.0003041,6]
[385772242,1758030678636,-400.0,0.0003041,6]
[385772243,1758030678646,-400.0,0.0003041,6]
[385772244,1758030678656,-403.53897961,0.0003041,6]
[385772245,1758030678666,-400.0,0.0003041,6]
[385772246,1758030678676,-400.0,0.0003041,6]
[385772247,1758030678686,-400.0,0.0003041,6]
[385772248,1758030678696,-400.0,0.0003041,6]
[385772249,1758030678706,-400.0,0.0003041,6]
[385772250,1758030678715,-400.0,0.0003041,6]
[385772251,1758030678724,-500.0,0.0003041,6]
[385772252,1758030678734,-2737.65,0.0003041,6]
[385772253,1758030678743,-400.0,0.0003041,6]
[385772254,1758030678753,-979.58,0.0003041,6]
[385772255,1758030678763,-972.51,0.0003041,6]
[385772256,1758030678772,-400.0,0.0003041,6]
[385772257,1758030678781,-424.51,0.0003041,6]
[385772258,1758030678791,-400.0,0.0003041,6]
[385772259,1758030678800,-1504.81,0.0003041,6]
[385772260,1758030678811,-400.0,0.0003041,6]
[385772261,1758030678820,-400.0,0.0003041,6]
[385772262,1758030678830,-967.93,0.0003041,6]
[385772263,1758030678840,-400.0,0.0003041,6]
[385772264,1758030678851,-400.0,0.0003041,6]
[385772265,1758030678861,-400.0,0.0003041,6]
[385772266,1758030678870,-400.0,0.0003041,6]
[385772267,1758030679044,-487.03,0.0003041,6]
[385772268,1758030679054,-400.0,0.0003041,6]
[385772269,1758030679063,-400.0,0.0003041,6]
[385772270,1758030679073,-400.0,0.0003041,6]
[385772271,1758030679083,-450.27,0.0003041,6]
[385772272,1758030679093,-400.0,0.0003041,6]
[385772273,1758030679104,-610.52,0.0003041,6]
[385772274,1758030679114,-400.0,0.0003041,6]
[385772275,1758030679124,-400.0,0.0003041,6]
[385772276,1758030679134,-400.0,0.0003041,6]
[385772277,1758030679144,-400.0,0.0003041,6]
[385772278,1758030679154,-1142.34,0.0003041,6]
[385772279,1758030679164,-403.19979144,0.0003041,6]
[385772280,1758030679174,-675.11,0.0003041,6]
[385772281,1758030679184,-400.0,0.0003041,6]
[385772282,1758030679193,-406.92603307,0.0003041,6]
[385772283,1758030679203,-400.0,0.0003041,6]
[385772284,1758030679212,-400.0,0.0003041,6]
[385772285,1758030679222,-402.71042969,0.0003041,6]
[385772286,1758030679231,-1186.41,0.0003041,6]
[385772287,1758030679240,-741.03,0.0003041,6]
[385772288,1758030679249,-400.0,0.0003041,6]
[385772289,1758030679258,-400.0,0.0003041,6]
[385772290,1758030679268,-443.98498956,0.0003041,6]
[385772291,1758030679277,-400.0,0.0003041,6]
[385772292,1758030679287,-413.90491511,0.0003041,6]
[385772293,1758030679297,-400.0,0.0003041,6]
[385772294,1758030679306,-679.66,0.0003041,6]
[385772295,1758030679316,-1060.26,0.0003041,6]
[385772296,1758030679325,-601.84,0.0003041,6]
[385772297,1758030679334,-582.68,0.0003041,6]
[385772298,1758030679343,-400.0,0.0003041,6]
[385772299,1758030679357,-400.0,0.0003041,6]
[385772300,1758030679367,-400.0,0.0003041,6]
[385772301,1758030679376,-400.0,0.0003041,6]
[385772302,1758030679385,-405.69460782,0.0003041,6]
[385772303,1758030679394,-521.79,0.0003041,6]
[385772304,1758030679405,-403.15619249,0.0003041,6]
[385772305,1758030679414,-679.48,0.0003041,6]
[385772306,1758030679424,-2829.34,0.0003041,6]
[385772307,1758030679433,-475.17,0.0003041,6]
[385772308,1758030679443,-400.0,0.0003041,6]
[385772309,1758030679452,-400.0,0.0003041,6]
[385772310,1758030679461,-400.0,0.0003041,6]
[385772311,1758030679471,-400.0,0.0003041,6]
[385772312,1758030679480,-415.32,0.0003041,6]
[385772313,1758030679490,-400.0,0.0003041,6]
[385772314,1758030679499,-400.0,0.0003041,6]
[385772315,1758030679508,-403.64338992,0.0003041,6]
[385772316,1758030679518,-1230.92,0.0003041,6]
[385772317,1758030679527,-400.0,0.0003041,6]
[385772318,1758030679536,-400.0,0.0003041,6]
[385772319,1758030679546,-406.20678859,0.0003041,6]
[385772320,1758030679556,-859.59,0.0003041,6]
[385772321,1758030679566,-938.44,0.0003041,6]
[385772322,1758030679575,-400.0,0.0003041,6]
[385772323,1758030679585,-400.0,0.0003041,6]
[385772324,1758030679594,-400.0,0.0003041,6]
[385772325,1758030679606,-718.87,0.0003041,6]
[385772326,1758030679615,-589.52,0.0003041,6]
[385772327,1758030679623,-834.32,0.0003041,6]
[385772328,1758030679631,-1036.52,0.0003041,6]
[385772329,1758030679641,-400.0,0.0003041,6]
[385772330,1758030679649,-662.91,0.0003041,6]
[385772331,1758030679657,-500.0,0.0003041,2]
[385772332,1758030679665,-400.0,0.0003041,6]
[385772333,1758030679673,-478.98,0.0003041,6]
[385772334,1758030679682,-400.0,0.0003041,6]
[385772335,1758030679692,-402.95530311,0.0003041,6]
[385772336,1758030679701,-400.0,0.0003041,6]
[385772337,1758030679711,-400.0,0.0003041,6]
[385772338,1758030679720,-471.62,0.0003041,6]
[385772339,1758030679729,-402.24032902,0.0003041,6]
[385772340,1758030679738,-400.0,0.0003041,6]
[385772341,1758030679747,-400.0,0.0003041,6]
[385772342,1758030679756,-400.0,0.0003041,6]
[385772343,1758030679765,-547.21,0.0003041,6]
[385772344,1758030679775,-636.54,0.0003041,6]
[385772345,1758030679785,-400.0,0.0003041,6]
[385772346,1758030679795,-1485.81,0.0003041,6]
[385772347,1758030679804,-400.0,0.0003041,6]
[385772348,1758030679813,-840.26,0.0003041,6]
[385772349,1758030679824,-400.0,0.0003041,6]
[385772350,1758030679834,-300.0,0.0003041,6]
[385772351,1758030679844,-400.0,0.0003041,6]
[385772352,1758030679855,-704.17,0.0003041,6]
[385772353,1758030679864,-400.0,0.0003041,6]
[385772354,1758030679873,-400.0,0.0003041,6]
[385772355,1758030679883,-1126.57,0.0003041,6]
[385772356,1758030679892,-954.22,0.0003041,6]
[385772357,1758030679902,-400.0,0.0003041,6]
[385772358,1758030679915,-400.0,0.0003041,6]
[385772359,1758030679925,-968.13,0.0003041,6]
[385772360,1758030679934,-400.0,0.0003041,6]
[385772361,1758030679944,-400.0,0.0003041,6]
[385772362,1758030679954,-402.38841876,0.0003041,6]
[385772363,1758030679964,-400.0,0.0003041,6]
[385772364,1758030679974,-400.0,0.0003041,6]
[385772365,1758030679987,-554.6,0.0003041,6]
[385772366,1758030679998,-400.0,0.0003041,6]
[385772367,1758030680008,-400.0,0.0003041,6]
[385772368,1758030680018,-1220.75,0.0003041,6]
[385772369,1758030680027,-400.0,0.0003041,6]
[385772370,1758030680037,-744.62,0.0003041,6]
[385772371,1758030680047,-400.0,0.0003041,6]
[385772372,1758030680056,-845.16,0.0003041,6]
[385772373,1758030680066,-458.66,0.0003041,6]
[385772374,1758030680076,-400.0,0.0003041,6]
[385772375,1758030680086,-400.0,0.0003041,6]
[385772376,1758030680096,-421.02,0.0003041,6]
[385772377,1758030680111,-423.58,0.0003041,6]
[385772378,1758030680121,-400.0,0.0003041,6]
[385772379,1758030680131,-400.0,0.0003041,6]
[385772380,1758030680144,-413.37307491,0.0003041,6]
[385772381,1758030680164,-400.0,0.0003041,6]
[385772382,1758030680183,-2204.67,0.0003041,6]
[385772383,1758030680204,-400.0,0.0003041,6]
[385772384,1758030680221,-598.99,0.0003041,6]
[385772385,1758030680239,-452.6,0.0003041,6]
[385772386,1758030680258,-400.0,0.0003041,6]
[385772387,1758030680277,-400.0,0.0003041,6]
[385772388,1758030680296,-412.79,0.0003041,6]
[385772389,1758030680315,-400.0,0.0003041,6]
[385772390,1758030680333,-562.96,0.0003041,6]
[385772391,1758030680353,-634.15,0.0003041,6]
[385772392,1758030680372,-400.0,0.0003041,6]
[385772393,1758030680385,-682.63,0.0003041,6]
[385772394,1758030680403,-595.96,0.0003041,6]
[385772395,1758030680419,-618.11,0.0003041,6]
[385772396,1758030680435,-400.0,0.0003041,6]
[385772397,1758030680451,-400.0,0.0003041,6]
[385772398,1758030680468,-400.0,0.0003041,6]
[385772399,1758030680485,-400.0,0.0003041,6]
[385772400,1758030680503,-400.0,0.0003041,6]
[385772401,1758030680519,-400.0,0.0003041,6]
[385772402,1758030680537,-865.38,0.0003041,6]
[385772403,1758030680555,-401.87285433,0.0003041,6]
[385772404,1758030680572,-400.0,0.0003041,6]
[385772405,1758030680590,-639.83,0.0003041,6]
[385772406,1758030680611,-499.48,0.0003041,6]
[385772407,1758030680629,-400.0,0.0003041,6]
[385772408,1758030680644,-400.0,0.0003041,6]
[385772409,1758030680661,-449.52,0.0003041,6]
[385772410,1758030680676,-400.0,0.0003041,6]
[385772411,1758030680692,-400.0,0.0003041,6]
[385772412,1758030680708,-400.0,0.0003041,6]
[385772413,1758030680724,-1087.0,0.0003041,6]
[385772414,1758030680741,-400.0,0.0003041,6]
[385772415,1758030680758,-400.0,0.0003041,6]
[385772416,1758030680775,-400.0,0.0003041,6]
[385772417,1758030680793,-400.0,0.0003041,6]
[385772418,1758030680810,-400.0,0.0003041,6]
[385772419,1758030680831,-1915.8,0.0003041,6]
[385772420,1758030680852,-215.09794029,0.0003041,6]
[385772421,1758030680873,-400.0,0.0003041,6]
[385772422,1758030680894,-400.0,0.0003041,6]
[385772423,1758030680915,-402.10972667,0.0003041,6]
[385772424,1758030680934,-400.0,0.0003041,6]
[385772425,1758030680953,-3072.83,0.0003041,6]
[385772426,1758030680971,-400.0,0.0003041,6]
[385772427,1758030680990,-400.0,0.0003041,6]
[385772428,1758030681007,-1335.64,0.0003041,6]
[385772429,1758030681024,-428.02,0.0003041,6]
[385772430,1758030681043,-1656.96,0.0003041,6]
[385772431,1758030681059,-400.0,0.0003041,6]
[385772432,1758030681076,-400.0,0.0003041,6]
[385772433,1758030681092,-400.0,0.0003041,6]
[385772434,1758030681109,-618.88,0.0003041,6]
[385772435,1758030681125,-289.28789094,0.0003041,2]
[385772436,1758030681142,-400.0,0.0003041,6]
[385772437,1758030681166,-506.4,0.0003041,6]
[385772438,1758030681183,-400.0,0.0003041,6]
[385772439,1758030681199,-401.6993821,0.0003041,6]
[385772440,1758030681217,-400.0,0.0003041,6]
[385772441,1758030681233,-418.35,0.0003041,6]
[385772442,1758030681249,-400.0,0.0003041,6]
[385772443,1758030681266,-1044.0,0.0003041,6]
[385772444,1758030681282,-415.65829129,0.0003041,6]
[385772445,1758030681298,-711.65,0.0003041,6]
[385772446,1758030681313,-400.0,0.0003041,6]
[385772447,1758030681329,-400.0,0.0003041,6]
[385772448,1758030681345,-400.0,0.0003041,6]
[385772449,1758030681366,-407.8959157,0.0003041,6]
[385772450,1758030681383,-400.0,0.0003041,6]
[385772451,1758030681400,-433.97,0.0003041,6]
[385772452,1758030681416,-400.0,0.0003041,6]
[385772453,1758030681432,-400.0,0.0003041,6]
[385772454,1758030681448,-400.0,0.0003041,6]
[385772455,1758030681464,-400.0,0.0003041,6]
[385772456,1758030681480,-400.0,0.0003041,6]
[385772457,1758030681496,-4649.21,0.0003041,6]
[385772458,1758030681511,-400.0,0.0003041,6]
[385772459,1758030681527,-400.0,0.0003041,6]
[385772460,1758030681543,-400.0,0.0003041,6]
[385772461,1758030681559,-461.66,0.0003041,6]
[385772462,1758030681575,-408.28842682,0.0003041,6]
[385772463,1758030681590,-400.0,0.0003041,6]
[385772464,1758030681607,-400.0,0.0003041,6]
[385772465,1758030681623,-400.0,0.0003041,6]
[385772466,1758030681638,-400.0,0.0003041,6]
[385772467,1758030681654,-400.0,0.0003041,6]
[385772468,1758030681670,-400.0,0.0003041,6]
[385772469,1758030681685,-2203.43,0.0003041,6]
[385772470,1758030681700,-400.0,0.0003041,6]
[385772471,1758030681716,-400.0,0.0003041,6]
[385772472,1758030681733,-400.0,0.0003041,6]
[385772473,1758030681753,-400.0,0.0003041,6]
[385772474,1758030681769,-4196.7,0.0003041,6]
[385772475,1758030681785,-774.53,0.0003041,6]
[385772476,1758030681800,-1208.94,0.0003041,6]
[385772477,1758030681815,-400.0,0.0003041,6]
[385772478,1758030681831,-400.0,0.0003041,6]
[385772479,1758030681847,-1032.12,0.0003041,6]
[385772480,1758030681864,-1174.23,0.0003041,6]
[385772481,1758030681881,-707.95,0.0003041,6]
[385772482,1758030681898,-400.0,0.0003041,6]
[385772483,1758030681917,-400.0,0.0003041,6]
[385772484,1758030681933,-400.0,0.0003041,6]
[385772485,1758030681948,-400.0,0.0003041,6]
[385772486,1758030681964,-1316.82,0.0003041,6]
[385772487,1758030681981,-400.0,0.0003041,6]
[385772488,1758030681997,-400.0,0.0003041,6]
[385772489,1758030682239,-400.0,0.0003041,6]
[385772490,1758030682249,-516.15,0.0003041,6]
[385772491,1758030682259,-678.56,0.0003041,6]
[385772492,1758030682269,-926.17,0.0003041,6]
[385772493,1758030682278,-400.0,0.0003041,6]
[385772494,1758030682288,-400.0,0.0003041,6]
[385772495,1758030682298,-776.58,0.0003041,6]
[385772496,1758030682307,-400.0,0.0003041,6]
[385772497,1758030682317,-400.0,0.0003041,6]
[385772498,1758030682326,-400.0,0.0003041,6]
[385772499,1758030682335,-400.0,0.0003041,6]
[385772500,1758030682344,-400.0,0.0003041,6]
[385772501,1758030682355,-400.0,0.0003041,6]
[385772502,1758030682364,-903.88,0.0003041,6]
[385772503,1758030682373,-473.32,0.0003041,6]
[385772504,1758030682383,-400.0,0.0003041,6]
[385772505,1758030682392,-513.38,0.0003041,6]
[385772506,1758030682402,-401.41923416,0.0003041,6]
[385772507,1758030682413,-400.0,0.0003041,6]
[385772508,1758030682423,-456.25,0.0003041,6]
[385772509,1758030682433,-400.0,0.0003041,6]
[385772510,1758030682443,-400.0,0.0003041,6]
[385772511,1758030682453,-400.0,0.0003041,6]
[385772512,1758030682463,-400.0,0.0003041,6]
[385772513,1758030682472,-400.0,0.0003041,6]
[385772514,1758030682482,-400.0,0.0003041,6]
[385772515,1758030682492,-728.15,0.0003041,6]
[385772516,1758030682501,-743.95,0.0003041,6]
[385772517,1758030682511,-400.0,0.0003041,6]
[385772518,1758030682521,-403.3396924,0.0003041,6]
[385772519,1758030682530,-400.0,0.0003041,6]
[385772520,1758030682540,-400.0,0.0003041,6]
[385772521,1758030682550,-441.97,0.0003041,6]
[385772522,1758030682559,-400.0,0.0003041,6]
[385772523,1758030682569,-400.0,0.0003041,6]
[385772524,1758030682578,-400.0,0.0003041,6]
[385772525,1758030682588,-532.97,0.0003041,6]
[385772526,1758030682597,-925.4,0.0003041,6]
[385772527,1758030682609,-1329.08,0.0003041,6]
[385772528,1758030682619,-400.0,0.0003041,6]
[385772529,1758030682628,-518.84,0.0003041,6]
[385772530,1758030682640,-400.0,0.0003041,6]
[385772531,1758030682652,-1055.05,0.0003041,6]
[385772532,1758030682661,-1170.07,0.0003041,6]
[385772533,1758030682671,-400.0,0.0003041,6]
[385772534,1758030682681,-400.0,0.0003041,6]
[385772535,1758030682690,-400.0,0.0003041,6]
[385772536,1758030682700,-604.86,0.0003041,6]
[385772537,1758030682709,-400.0,0.0003041,6]
[385772538,1758030682719,-405.73301978,0.0003041,6]
[385772539,1758030682728,-200.0,0.00030438,2]
[385772540,1758030682737,-200.0,0.00030438,2]
[385772541,1758030682747,-200.0,0.00030438,2]
[385772542,1758030682756,-150.0,0.00030473,5]
[385772543,1758030682766,-200.28635243,0.00030584,2]
[385772544,1758030682775,-884.0,0.00030658,3]
[385772545,1758030682785,-444.84310214,0.00030684,2]
[385772546,1758030682794,-246.496712,0.00030684,6]
[385772547,1758030682803,-246.496712,0.00030684,6]
[385772548,1758030682812,-150.981206,0.00030684,6]
[385772549,1758030682822,-150.981206,0.00030684,6]
[385772550,1758030682831,-192.657959,0.00030684,6]
[385772551,1758030682840,-192.657959,0.00030684,6]
[385772552,1758030682851,-400.0,0.00030684,6]
[385772553,1758030682860,-396.18728821,0.00030684,6]
[385772554,1758030682870,-400.0,0.00030684,6]
[385772555,1758030682879,-400.0,0.00030684,6]
[385772556,1758030682889,-403.57994186,0.00030684,6]
[385772557,1758030682898,-400.0,0.00030684,5]
[385772558,1758030682908,-400.0,0.00030684,6]
[385772559,1758030682919,-400.0,0.00030684,6]
[385772560,1758030682929,-400.0,0.00030684,6]
[385772561,1758030682938,-400.0,0.00030684,6]
[385772562,1758030682947,-400.0,0.00030684,6]
[385772563,1758030682957,-498.59851085,0.00030684,6]
[385772564,1758030682967,-400.0,0.00030684,2]
[385772565,1758030682977,-400.73062546,0.00030684,3]
[385772566,1758030682986,-400.0,0.00030684,6]
[385772567,1758030682997,-358.25748842,0.00030684,6]
[385772568,1758030683007,-400.0,0.00030684,6]
[385772569,1758030683016,-400.0,0.00030684,6]
[385772570,1758030683026,-400.0,0.00030684,6]
[385772571,1758030683035,-457.73677107,0.00030684,6]
[385772572,1758030683045,-367.60813011,0.00030684,6]
[385772573,1758030683054,-400.0,0.00030684,6]
[385772574,1758030683064,-400.0,0.00030684,6]
[385772575,1758030683073,-418.4472867,0.00030684,6]
[385772576,1758030683083,-400.0,0.00030684,6]
[385772577,1758030683093,-400.0,0.00030684,6]
[385772578,1758030683103,-400.0,0.00030684,6]
[385772579,1758030683113,-400.0,0.00030684,6]
[385772580,1758030683122,-400.0,0.00030684,6]
[385772581,1758030683132,-1005.76,0.00030684,6]
[385772582,1758030683141,-987.64,0.00030684,6]
[385772583,1758030683150,-406.66966906,0.00030684,6]
[385772584,1758030683159,-400.0,0.00030684,6]
[385772585,1758030683169,-400.0,0.00030684,6]
[385772586,1758030683178,-403.32587077,0.00030684,6]
[385772587,1758030683187,-400.0,0.00030684,6]
[385772588,1758030683197,-400.0,0.00030684,6]
[385772589,1758030683206,-400.0,0.00030684,6]
[385772590,1758030683215,-400.0,0.00030684,6]